bitfinex-derivatives/quotes_SOLF0:USTF0_20250829
["timestamp","ask_amount","ask_price","bid_price","bid_amount"]
[1756493993414,124.12,202.13,202.12,0.03538375]
[1756493993614,79.86,202.14,202.12,0.03538375]
[1756493994312,7.8,202.16,202.12,0.03538375]
[1756493994513,124.12,202.15,202.12,0.03538375]
[1756493995011,124.12,202.15,202.12,7.32538375]
[1756493996417,124.12,202.15,202.12,0.03538375]
[1756493996617,131.92,202.15,202.12,7.32538375]
[1756493998616,7.8,202.2,202.12,7.32538375]
[1756493998917,128.22205193,202.19,202.12,7.32538375]
[1756493999112,7.8,202.18,202.12,7.29]
[1756493999313,128.22205193,202.19,202.14,0.03534733]
[1756493999714,7.8,202.18,202.14,0.03534733]
[1756493999917,128.22205193,202.19,202.14,0.03534733]
[1756494000115,7.8,202.18,202.14,0.03534733]
[1756494000318,7.8,202.15,202.06,4.1649368]
[1756494000514,124.12,202.14,202.03,11.4549368]
[1756494000820,11.90205193,202.11,202.03,11.4549368]
[1756494001019,123.72,202.1,202.03,11.4549368]
[1756494001216,123.72,202.1,202.03,4.1649368]
[1756494001217,7.8,202.09,202.03,4.1649368]
[1756494001421,7.8,202.07,201.99,11.4549368]
[1756494001721,0.03771817,202.09,202.0,15.55698873]
[1756494001921,0.03771817,202.09,202.03,15.55698873]
[1756494002119,7.8,202.1,202.03,15.55698873]
[1756494002319,124.1,202.11,202.04,7.29]
[1756494002521,0.03115233,202.08,202.03,8.26698873]
[1756494002718,0.03115233,202.08,202.04,4.1649368]
[1756494002919,7.8,202.19,202.07,7.29]
[1756494003122,8.96,202.18,202.1,7.29]
[1756494004127,7.8,202.23,202.1,7.29]
[1756494004324,11.90205193,202.23,202.13,7.29]
[1756494004526,55.10205193,202.23,202.13,11.4549368]
[1756494005327,55.10205193,202.23,202.13,7.29]
[1756494006423,7.8,202.22,202.13,11.4549368]
[1756494008423,7.8,202.22,202.13,7.29]
[1756494009824,7.8,202.22,202.13,11.4549368]
[1756494010026,124.1,202.25,202.18,4.10205193]
[1756494010231,124.1,202.25,202.19,7.53]
[1756494010730,124.1,202.25,202.2,0.03512514]
[1756494010925,124.1,202.25,202.21,7.53]
[1756494011422,131.6,202.25,202.21,7.53]
[1756494012326,124.1,202.25,202.2,0.03512514]
[1756494013437,4.10205193,202.23,202.2,0.03512514]
[1756494013825,7.5,202.22,202.2,0.03512514]
[1756494014427,4.10205193,202.23,202.09,7.53]
[1756494014634,4.10205193,202.19,202.09,7.53]
[1756494014930,61.32,202.18,202.09,7.53]
[1756494015331,7.5,202.15,202.09,7.53]
[1756494015531,53.82,202.18,202.03,5.51046004]
[1756494015532,7.5,202.11,202.03,4.1649368]
[1756494015732,4.10205193,202.08,202.01,4.1649368]
[1756494015939,4.10205193,202.08,202.0,11.6949368]
[1756494016536,0.031989,202.06,202.0,11.6949368]
[1756494016743,0.031989,202.06,202.0,7.53]
[1756494017139,4.10205193,202.05,202.0,7.53]
[1756494017341,7.5,202.04,201.96,4.1649368]
[1756494017540,7.5,202.04,201.96,11.6949368]
[1756494018942,7.5,202.01,201.92,4.1649368]
[1756494019139,0.031989,202.06,201.93,11.6949368]
[1756494019436,69.48,202.07,201.96,7.53]
[1756494019634,0.03399942,202.02,201.97,4.1649368]
[1756494019839,0.03399942,202.02,201.98,7.53]
[1756494020037,0.03399942,202.02,201.98,8.26698873]
[1756494020731,0.03399942,202.02,201.99,7.53]
[1756494021535,0.03399942,202.02,201.99,4.1649368]
[1756494021737,0.03399942,202.02,202.0,7.53]
[1756494022034,0.03399942,202.02,201.96,4.1649368]
[1756494022337,0.03399942,202.02,201.99,7.53]
[1756494023040,0.03399942,202.02,202.01,11.63205193]
[1756494025942,76.22123984,202.19,202.01,4.60205193]
[1756494026148,76.22123984,202.19,202.05,7.53]
[1756494026149,4.10205193,202.16,202.05,7.53]
[1756494026440,7.5,202.12,202.05,7.53]
[1756494026848,7.5,202.12,202.01,7.53]
[1756494027142,7.5,202.09,202.01,7.53]
[1756494027442,7.5,202.09,202.04,0.03444171]
[1756494027649,11.60205193,202.1,202.04,0.03444171]
[1756494028147,7.5,202.1,202.04,0.03444171]
[1756494029046,7.5,202.14,202.05,7.53]
[1756494029447,11.60205193,202.14,202.05,7.53]
[1756494029641,7.5,202.14,202.05,7.53]
[1756494029846,7.5,202.14,202.07,4.13705897]
[1756494030042,23.98205193,202.17,202.08,7.53]
[1756494031048,23.98205193,202.17,202.07,4.13705897]
[1756494031049,7.5,202.16,202.07,4.13705897]
[1756494031250,7.5,202.16,202.07,0.03500704]
[1756494036555,7.5,202.16,202.08,7.53]
[1756494044658,7.5,202.16,202.07,0.03500704]
[1756494044861,7.78,202.13,202.07,0.03500704]
[1756494049970,76.22123984,202.19,202.08,7.33]
[1756494049971,7.78,202.18,202.08,7.33]
[1756494050166,7.78,202.18,202.1,7.33]
[1756494050668,7.78,202.18,202.12,0.03756658]
[1756494055866,76.22123984,202.19,202.13,7.33]
[1756494056765,7.78,202.24,202.15,7.33]
[1756494056966,135.96205193,202.24,202.12,0.03756658]
[1756494057168,135.96205193,202.24,202.11,7.33]
[1756494057377,7.78,202.2,202.08,4.1649368]
[1756494057577,7.78,202.2,202.16,0.03414819]
[1756494057978,4.10205193,202.18,202.07,11.43205193]
[1756494058175,4.10205193,202.15,202.04,4.10205193]
[1756494058477,4.10205193,202.12,202.03,7.33]
[1756494058674,7.78,202.11,202.03,7.33]
[1756494059077,7.78,202.11,202.02,4.1649368]
[1756494059278,7.78,202.08,202.0,4.1649368]
[1756494060278,7.78,202.08,202.01,7.33]
[1756494060475,0.03250883,202.09,202.01,11.4949368]
[1756494061577,0.03250883,202.09,202.02,8.26698873]
[1756494062076,0.03250883,202.09,202.03,7.33]
[1756494062282,0.03250883,202.09,202.05,4.10205193]
[1756494062777,0.03250883,202.09,202.06,4.1649368]
[1756494063177,0.03250883,202.09,202.05,8.26698873]
[1756494063384,0.03250883,202.09,202.06,4.1649368]
[1756494064182,0.03250883,202.09,202.07,7.33]
[1756494064578,0.03250883,202.09,202.06,15.59698873]
[1756494064771,0.03250883,202.09,202.06,11.43205193]
[1756494065180,0.03250883,202.09,202.07,7.33]
[1756494065978,0.03250883,202.09,202.06,4.1649368]
[1756494066178,0.03250883,202.09,202.07,11.4949368]
[1756494066377,7.78,202.17,202.08,4.1649368]
[1756494066578,7.78,202.17,202.1,8.26698873]
[1756494066776,7.78,202.17,202.1,4.1649368]
[1756494066983,7.78,202.17,202.09,11.4949368]
[1756494067174,7.78,202.17,202.09,7.33]
[1756494067783,7.78,202.17,202.11,0.0372279]
[1756494071476,86.22755165,202.21,202.12,7.98]
[1756494072478,86.22755165,202.21,202.11,4.2021647]
[1756494072479,86.22755165,202.21,202.11,0.0372279]
[1756494072679,7.5,202.17,202.11,0.0372279]
[1756494073184,7.5,202.17,202.11,12.11927983]
[1756494073878,7.5,202.17,202.11,16.28421663]
[1756494074584,7.5,202.17,202.12,4.1649368]
[1756494074782,7.5,202.17,202.13,7.98]
[1756494074982,7.5,202.2,202.11,8.30421663]
[1756494075482,8.36091732,202.24,202.15,7.98]
[1756494076282,8.36091732,202.24,202.17,0.03224921]
[1756494076582,8.0977933,202.33,202.17,0.03224921]
[1756494076583,7.5,202.28,202.18,7.98]
[1756494076880,7.5,202.33,202.25,4.10205193]
[1756494077285,7.5,202.33,202.27,0.03233351]
[1756494081482,15.6,202.36,202.27,8.01233351]
[1756494081692,7.5,202.37,202.27,8.01233351]
[1756494083892,7.5,202.37,202.27,0.03233351]
[1756494085389,7.5,202.34,202.27,0.03233351]
[1756494087892,4.10205193,202.32,202.27,0.03233351]
[1756494088289,4.10205193,202.29,202.27,0.03233351]
[1756494088495,7.5,202.28,202.27,0.03233351]
[1756494088692,7.5,202.28,202.16,7.98]
[1756494088895,7.5,202.25,202.16,7.98]
[1756494089791,4.10205193,202.26,202.12,12.08205193]
[1756494089994,0.03440568,202.23,202.12,12.08205193]
[1756494090296,7.5,202.22,202.12,12.08205193]
[1756494091285,7.5,202.22,202.12,7.98]
[1756494094196,14.07715771,202.22,202.12,7.98]
[1756494095193,7.5,202.21,202.07,7.98]
[1756494095797,7.5,202.18,202.07,7.98]
[1756494095991,0.03314083,202.16,202.07,7.98]
[1756494100901,7.99,202.15,202.07,7.98]
[1756494103602,14.56715771,202.15,202.02,7.31]
[1756494104204,6.57715771,202.12,202.02,7.31]
[1756494104502,7.99,202.1,202.02,7.31]
[1756494105303,0.03747124,202.11,202.02,7.31]
[1756494105699,7.99,202.1,202.02,7.31]
[1756494108701,0.03747124,202.11,202.02,7.31]
[1756494110406,0.03747124,202.11,202.02,13.88715771]
[1756494110606,0.03747124,202.11,202.03,7.31]
[1756494111504,0.03747124,202.11,202.05,7.31]
[1756494112208,0.03747124,202.11,202.08,7.31]
[1756494112413,0.03747124,202.11,202.07,4.11418542]
[1756494112709,0.03747124,202.11,202.08,7.31]
[1756494113107,0.03747124,202.11,202.07,4.11418542]
[1756494113404,0.03747124,202.11,202.08,7.31]
[1756494113608,0.03747124,202.11,202.04,11.42418542]
[1756494114004,0.03747124,202.11,202.05,7.31]
[1756494117212,7.99,202.1,202.02,7.31]
[1756494118020,0.03148679,202.08,202.02,7.31]
[1756494120412,7.99,202.06,201.95,7.31]
[1756494120614,4.11418542,202.04,201.95,7.31]
[1756494121115,0.0341117,202.02,201.95,7.31]
[1756494121615,4.11418542,202.01,201.95,7.31]
[1756494121811,7.99,202.0,201.91,7.31]
[1756494122516,0.03754051,201.98,201.91,7.31]
[1756494122716,4.15172593,201.98,201.91,7.31]
[1756494123120,0.03754051,201.98,201.91,7.31]
[1756494135329,7.58754051,201.98,201.91,7.31]
[1756494136336,4.11418542,201.97,201.87,7.9]
[1756494139838,7.55,201.93,201.87,7.9]
[1756494140635,7.55,201.91,201.87,7.9]
[1756494142543,0.0357564,201.92,201.78,7.9]
[1756494142738,0.0357564,201.92,201.88,7.9]
[1756494143040,4.11418542,202.02,201.9,7.9]
[1756494143237,8.69,202.05,201.92,7.9]
[1756494143432,4.11418542,202.04,201.92,7.9]
[1756494143632,7.55,201.97,201.88,7.9]
[1756494144541,4.11418542,201.96,201.88,7.9]
[1756494144737,7.55,201.89,201.8,7.9]
[1756494144940,4.11418542,201.87,201.8,7.9]
[1756494145445,7.55,201.83,201.74,7.9]
[1756494145641,11.66418542,201.83,201.74,7.9]
[1756494145833,4.11418542,201.8,201.74,7.9]
[1756494146034,7.55,201.83,201.74,12.01418542]
[1756494146239,0.03239711,201.81,201.74,12.01418542]
[1756494146435,0.03239711,201.81,201.75,7.9]
[1756494146847,7.55,201.92,201.81,7.9]
[1756494147044,7.55,201.86,201.76,7.93684985]
[1756494147243,4.11418542,201.77,201.66,7.9]
[1756494147441,7.55,201.76,201.66,7.9]
[1756494147639,7.55,201.76,201.66,12.02161656]
[1756494147640,14.15870254,201.76,201.66,12.02161656]
[1756494147947,332.82,201.84,201.73,7.9]
[1756494148544,133.19,201.9,201.76,7.9]
[1756494148841,7.55,201.96,201.82,7.9]
[1756494149350,6.60870254,201.89,201.74,7.9]
[1756494149549,7.55,201.88,201.87,0.03127461]
[1756494149738,8.41226121,201.93,201.79,7.9]
[1756494149936,0.86226121,201.93,201.85,7.9]
[1756494150141,0.86226121,201.93,201.74,4.12161656]
[1756494150142,0.86226121,201.93,201.88,7.9]
[1756494150342,0.86226121,201.93,201.87,6.60870254]
[1756494150540,0.86226121,201.93,201.88,7.9]
[1756494150746,0.86226121,201.93,201.79,7.9]
[1756494150942,0.86226121,201.93,201.89,6.60870254]
[1756494151145,0.86226121,201.93,201.9,7.9]
[1756494151642,0.86226121,201.93,201.87,7.9]
[1756494151844,0.86226121,201.93,201.89,6.60870254]
[1756494152045,0.86226121,201.93,201.87,6.60870254]
[1756494152240,0.86226121,201.93,201.81,62.62]
[1756494152241,0.86226121,201.93,201.83,7.9]
[1756494152448,7.55,201.92,201.83,7.9]
[1756494152941,7.55,201.92,201.78,340.78]
[1756494153148,7.55,201.92,201.81,7.9]
[1756494153448,0.86226121,201.93,201.87,7.9]
[1756494153650,0.86226121,201.93,201.8,4.12161656]
[1756494153651,8.0,202.05,201.92,14.50870254]
[1756494154250,8.0,202.05,201.92,7.9]
[1756494154452,7.55,202.13,201.98,7.9]
[1756494155046,6.60870254,202.12,201.98,7.9]
[1756494155244,7.55,202.11,201.94,6.60870254]
[1756494155449,7.55,202.16,202.03,7.9]
[1756494155647,7.55,202.16,202.05,6.60870254]
[1756494156047,65.06,202.22,202.06,7.9]
[1756494156247,6.60870254,202.19,202.06,7.9]
[1756494156551,7.55,202.23,202.06,14.50870254]
[1756494156846,80.97,202.23,202.06,14.50870254]
[1756494157249,7.22,202.21,202.12,0.03536538]
[1756494157443,73.42,202.23,202.12,0.03536538]
[1756494157444,7.22,202.18,202.12,0.03536538]
[1756494158842,7.22,202.15,202.12,0.03536538]
[1756494159042,7.22,202.13,202.12,0.03536538]
[1756494159240,7.22,202.18,202.12,0.03536538]
[1756494159545,134.96,202.18,202.12,0.03536538]
[1756494160340,6.60870254,202.16,202.12,0.03536538]
[1756494160547,0.5,202.17,202.0,7.98]
[1756494160548,7.22,202.12,202.0,7.98]
[1756494161452,6.60870254,202.16,202.0,7.98]
[1756494161643,39.88870254,202.16,202.0,7.98]
[1756494161843,67.32090312,202.25,202.07,7.98]
[1756494162042,0.86116232,202.2,202.07,7.98]
[1756494162451,0.86116232,202.2,202.1,7.98]
[1756494163244,0.86116232,202.2,202.13,0.03373586]
[1756494164053,7.22,202.23,202.14,7.98]
[1756494164952,7.22,202.29,202.15,6.60870254]
[1756494165149,75.32,202.33,202.19,7.98]
[1756494165354,0.86060861,202.32,202.19,7.98]
[1756494165853,0.86060861,202.32,202.24,0.03204445]
[1756494166250,7.22,202.36,202.24,6.64074699]
[1756494167553,332.66,202.37,202.27,6.60870254]
[1756494168055,332.66,202.37,202.28,7.98]
[1756494168258,127.92,202.39,202.3,0.03239918]
[1756494168555,127.92,202.39,202.3,6.64110172]
[1756494168954,127.92,202.39,202.33,14.58870254]
[1756494169260,127.9,202.45,202.33,14.58870254]
[1756494170051,7.22,202.47,202.37,0.03767605]
[1756494170254,127.86,202.46,202.37,0.03767605]
[1756494171156,127.86,202.46,202.38,7.98]
[1756494172060,332.54,202.5,202.39,6.60870254]
[1756494172260,134.98,202.52,202.4,7.98]
[1756494172758,134.98,202.52,202.44,0.03338405]
[1756494173156,6.60870254,202.58,202.44,0.03338405]
[1756494173361,7.22,202.57,202.44,8.01338405]
[1756494173554,8.0794927,202.57,202.44,7.98]
[1756494173957,8.0794927,202.57,202.48,0.03467394]
[1756494174150,7.22,202.57,202.48,0.03467394]
[1756494176660,135.06,202.57,202.48,0.03467394]
[1756494177057,135.91947147,202.57,202.48,0.03467394]
[1756494179465,135.75947147,202.57,202.48,0.03467394]
[1756494180360,7.22,202.55,202.48,0.03467394]
[1756494181267,75.46,202.55,202.48,0.03467394]
[1756494182266,7.22,202.6,202.48,8.01467394]
[1756494182766,333.23929108,202.62,202.48,18.66487176]
[1756494183066,332.38,202.62,202.49,7.98]
[1756494183466,127.74,202.65,202.53,0.03563868]
[1756494183857,127.74,202.65,202.53,8.01563868]
[1756494184059,0.8591638,202.65,202.56,10.65019782]
[1756494184261,7.22,202.73,202.6,10.65019782]
[1756494184465,14.08,202.78,202.61,7.98]
[1756494184770,7.22,202.78,202.65,7.98]
[1756494185863,7.22,202.78,202.69,0.03150357]
[1756494186271,7.22,202.78,202.69,18.66170139]
[1756494186463,7.22,202.85,202.69,10.68170139]
[1756494186765,7.22,202.85,202.7,7.98]
[1756494187171,7.28,202.83,202.75,0.0360114]
[1756494187762,7.28,202.88,202.75,0.0360114]
[1756494188165,7.28,202.88,202.74,7.83]
[1756494188364,8.13816801,202.88,202.74,7.83]
[1756494188572,8.13816801,202.88,202.79,0.03498287]
[1756494188765,10.65019782,202.85,202.79,0.03498287]
[1756494188970,7.28,202.84,202.68,7.83]
[1756494189369,7.28,202.84,202.67,10.65019782]
[1756494189370,9.94,202.86,202.8,0.03586443]
[1756494189573,17.22,202.86,202.72,7.83]
[1756494189873,7.28,202.85,202.66,7.83]
[1756494190075,7.16260128,202.85,202.66,7.83]
[1756494190669,7.16260128,202.85,202.7,7.83]
[1756494190870,7.16260128,202.85,202.71,93.6]
[1756494191076,11.9,202.9,202.74,7.83]
[1756494191571,11.9,202.9,202.76,0.03260728]
[1756494191975,11.9,202.9,202.74,7.83]
[1756494192479,11.9,202.9,202.81,0.0363957]
[1756494192870,7.28,203.1,202.82,8.33]
[1756494193179,7.28,203.02,202.82,7.83]
[1756494193574,98.28,203.01,202.9,0.03288489]
[1756494193777,7.28,203.0,202.9,0.03288489]
[1756494194078,7.28,203.0,202.72,10.65019782]
[1756494194079,7.13209289,202.94,202.76,7.83]
[1756494194280,22.92,202.93,202.76,7.83]
[1756494194581,10.65019782,202.91,202.71,7.83]
[1756494195377,0.03263468,202.83,202.73,10.65019782]
[1756494195577,0.03263468,202.83,202.74,7.83]
[1756494195778,1.52,202.92,202.74,7.83]
[1756494195978,10.65019782,202.95,202.74,7.83]
[1756494196178,0.03788314,202.81,202.74,7.83]
[1756494196380,7.28,202.89,202.74,90.73]
[1756494196574,7.28,202.89,202.74,7.83]
[1756494196772,0.03162876,202.8,202.74,7.83]
[1756494197076,0.03162876,202.8,202.69,7.83]
[1756494197278,7.28,202.81,202.69,7.83]
[1756494197477,0.03585958,202.77,202.69,7.83]
[1756494198972,0.03585958,202.77,202.7,7.83]
[1756494200177,7.31585958,202.77,202.62,10.65019782]
[1756494200383,7.31585958,202.77,202.63,7.83]
[1756494200585,7.28,202.77,202.63,7.83]
[1756494200880,0.03691703,202.72,202.63,7.83]
[1756494201384,7.31691703,202.72,202.63,7.83]
[1756494201576,7.31691703,202.72,202.58,7.83]
[1756494201776,17.23691703,202.72,202.58,7.83]
[1756494202077,20.57019782,202.72,202.51,141.63019782]
[1756494202277,0.03360367,202.67,202.52,7.83]
[1756494202673,7.28,202.71,202.52,7.83]
[1756494202878,10.65019782,202.79,202.56,7.83]
[1756494203078,7.28,202.75,202.6,7.83]
[1756494203783,17.93019782,202.75,202.6,7.83]
[1756494203983,7.28,202.75,202.6,7.83]
[1756494204477,17.93019782,202.75,202.65,0.03759769]
[1756494206286,10.65019782,202.71,202.65,0.03759769]
[1756494206482,7.28,202.7,202.65,0.03759769]
[1756494206690,10.65019782,202.71,202.65,0.03759769]
[1756494206974,7.28,202.7,202.65,0.03759769]
[1756494207175,0.85895173,202.7,202.65,0.03759769]
[1756494208080,10.65019782,202.67,202.49,7.83]
[1756494208283,63.34,202.66,202.49,7.83]
[1756494208580,7.28,202.62,202.49,7.83]
[1756494209486,7.31707461,202.58,202.49,7.83]
[1756494210584,0.03707461,202.58,202.49,7.83]
[1756494212789,0.03707461,202.58,202.5,7.83]
[1756494214588,0.03707461,202.58,202.45,18.48019782]
[1756494214990,33.9,202.6,202.46,7.83]
[1756494215186,7.28,202.6,202.46,7.83]
[1756494215391,0.03211249,202.54,202.46,7.83]
[1756494216494,0.03211249,202.54,202.42,7.83]
[1756494216883,7.28,202.55,202.42,7.83]
[1756494217286,0.03318609,202.5,202.42,7.83]
[1756494217784,0.03318609,202.5,202.42,11.9074208]
[1756494218291,0.03318609,202.5,202.42,7.83]
[1756494220500,0.03318609,202.5,202.42,11.9074208]
[1756494220699,0.03318609,202.5,202.42,7.83]
[1756494221691,0.03318609,202.5,202.37,11.7074208]
[1756494221897,0.03318609,202.5,202.37,7.63]
[1756494222195,7.26,202.51,202.37,7.63]
[1756494222395,0.03523442,202.46,202.37,7.63]
[1756494222801,0.03523442,202.46,202.38,7.63]
[1756494224100,0.03523442,202.46,202.35,105.58328687]
[1756494224902,0.03523442,202.46,202.36,7.63]
[1756494228496,0.03523442,202.46,202.36,131.2]
[1756494228691,0.03523442,202.46,202.37,7.63]
[1756494229999,0.03523442,202.46,202.39,7.63]
[1756494234108,7.29523442,202.46,202.34,7.63]
[1756494234612,7.26,202.46,202.34,7.63]
[1756494234812,0.03671774,202.42,202.34,7.63]
[1756494235408,7.29671774,202.42,202.28,7.63]
[1756494235811,7.26,202.42,202.28,7.63]
[1756494236209,0.0315778,202.37,202.28,7.63]
[1756494240213,7.2915778,202.37,202.21,10.65019782]
[1756494240417,7.2915778,202.37,202.22,7.63]
[1756494240418,16.34,202.36,202.22,7.63]
[1756494240622,7.26,202.36,202.22,7.63]
[1756494240912,0.03738333,202.31,202.22,7.63]
[1756494242212,7.29738333,202.31,202.16,4.0774208]
[1756494242419,7.29738333,202.31,202.16,7.63]
[1756494242613,7.26,202.35,202.2,7.63]
[1756494243124,0.03493325,202.26,202.2,7.63]
[1756494243324,0.03493325,202.26,202.2,14.20014867]
[1756494243510,0.03493325,202.26,202.2,7.63]
[1756494245817,0.03493325,202.26,202.22,6.57014867]
[1756494246117,0.03493325,202.26,202.23,7.63]
[1756494246317,7.26,202.35,202.25,6.57014867]
[1756494246517,331.98,202.43,202.26,7.63]
[1756494246818,7.26,202.42,202.29,7.84]
[1756494247621,331.98,202.43,202.33,7.87211216]
[1756494248020,7.45,202.42,202.33,0.03211216]
[1756494249425,7.45,202.39,202.33,0.03211216]
[1756494249625,6.57014867,202.37,202.33,0.03211216]
[1756494250023,0.5,202.36,202.33,0.03211216]
[1756494250228,7.45,202.35,202.33,0.03211216]
[1756494250422,6.57014867,202.37,202.33,0.03211216]
[1756494250624,7.45,202.36,202.33,0.03211216]
[1756494250929,138.33,202.38,202.33,0.03211216]
[1756494251226,7.45,202.37,202.33,0.03211216]
[1756494251816,339.43,202.43,202.33,0.03211216]
[1756494252025,130.86,202.42,202.33,0.03211216]
[1756494252222,339.43,202.43,202.33,0.03211216]
[1756494252419,470.31,202.43,202.33,0.03211216]
[1756494252624,339.43,202.43,202.33,0.03211216]
[1756494256532,7.45,202.41,202.33,0.03211216]
[1756494257434,130.54,202.4,202.33,0.03211216]
[1756494258026,138.05,202.41,202.33,0.03211216]
[1756494258431,7.45,202.41,202.33,0.03211216]
[1756494260932,331.98,202.43,202.33,6.60226083]
[1756494261627,7.45,202.42,202.33,6.60226083]
[1756494263835,130.5,202.45,202.34,7.84]
[1756494264940,130.5,202.45,202.36,6.57014867]
[1756494265635,130.5,202.45,202.34,7.84]
[1756494265841,7.45,202.44,202.31,6.57014867]
[1756494266437,7.45,202.44,202.32,7.84]
[1756494267143,7.45,202.44,202.35,7.84]
[1756494269537,130.5,202.45,202.35,7.84]
[1756494271044,7.45,202.44,202.35,7.84]
[1756494272042,7.45,202.44,202.34,6.57014867]
[1756494272043,7.45,202.43,202.3,7.84]
[1756494272743,6.57014867,202.41,202.26,11.9174208]
[1756494273046,7.45,202.4,202.26,7.84]
[1756494273445,7.45,202.4,202.28,6.57014867]
[1756494273846,7.45,202.4,202.29,7.84]
[1756494274342,7.45,202.4,202.25,4.0774208]
[1756494274643,7.45,202.4,202.24,18.48756947]
[1756494274841,18.54,202.39,202.24,18.48756947]
[1756494276837,7.82,202.38,202.24,18.48756947]
[1756494277341,7.82,202.38,202.25,4.0774208]
[1756494277548,7.82,202.38,202.26,7.45]
[1756494277749,7.82,202.38,202.27,6.57014867]
[1756494277950,7.82,202.38,202.27,10.64756947]
[1756494278151,7.82,202.38,202.26,7.45]
[1756494278950,7.82,202.38,202.26,11.5274208]
[1756494279351,7.82,202.39,202.26,11.5274208]
[1756494279547,6.57014867,202.34,202.22,4.0774208]
[1756494279749,7.82,202.33,202.21,11.5274208]
[1756494279948,91.44,202.33,202.21,11.5274208]
[1756494280749,83.62,202.33,202.21,11.5274208]
[1756494280947,7.82,202.3,202.2,4.0774208]
[1756494281147,7.82,202.3,202.19,4.0774208]
[1756494282046,7.82,202.3,202.2,11.5274208]
[1756494283555,7.82,202.3,202.21,4.0774208]
[1756494284358,7.82,202.3,202.2,11.5274208]
[1756494285454,7.82,202.3,202.18,4.0774208]
[1756494285654,7.82,202.3,202.16,4.0774208]
[1756494285858,7.82,202.26,202.13,4.0774208]
[1756494286654,7.82,202.26,202.14,11.5274208]
[1756494286856,7.82,202.26,202.15,4.0774208]
[1756494287461,7.82,202.26,202.17,4.0774208]
[1756494288257,7.82,202.26,202.16,18.09756947]
[1756494288456,7.82,202.26,202.16,7.45]
[1756494290553,7.82,202.26,202.13,4.0774208]
[1756494291764,7.82,202.26,202.12,4.0774208]
[1756494291965,7.82,202.26,202.16,6.57014867]
[1756494292163,7.82,202.32,202.2,7.45]
[1756494293165,7.82,202.32,202.2,11.5274208]
[1756494293360,7.82,202.32,202.2,7.45]
[1756494293970,7.82,202.38,202.25,6.57014867]
[1756494294770,6.57014867,202.35,202.21,4.0774208]
[1756494295069,7.82,202.34,202.18,7.45]
[1756494296269,7.82,202.34,202.23,7.45]
[1756494299163,7.82,202.34,202.19,7.45]
[1756494300566,6.57014867,202.32,202.19,7.45]
[1756494300766,7.82,202.31,202.21,6.57014867]
[1756494301067,86.7,202.36,202.25,7.45]
[1756494301561,7.82,202.36,202.25,7.45]
[1756494303176,6.57014867,202.37,202.21,7.45]
[1756494303375,7.82,202.36,202.21,7.45]
[1756494303574,6.57014867,202.34,202.17,7.45]
[1756494303774,7.82,202.33,202.17,7.45]
[1756494304069,7.82,202.3,202.17,7.45]
[1756494304369,7.82,202.3,202.1,77.3128]
[1756494304370,7.82,202.27,202.13,18.15209478]
[1756494304571,7.82,202.27,202.14,7.45]
[1756494304770,7.82,202.27,202.15,4.13194611]
[1756494305074,7.82,202.27,202.14,7.45]
[1756494305971,7.82,202.27,202.15,7.45]
[1756494306171,7.82,202.27,202.15,11.58194611]
[1756494306576,7.82,202.27,202.16,7.68]
[1756494306880,7.4,202.32,202.21,7.68]